Cogmind - Beta 15 @@@ ROGUE MODE // 2025.09.01 @ 09:59:56 Player: lepire Result: Destroyed by Y-54 Guardian with Gatling Laser Performance ------------- Evolutions (0) 0 Regions Visited (3) 600 Robots Destroyed (9) 45 Value Destroyed (106) 106 Prototype IDs (0) 0 Alien Tech Used (0) 0 Bonus (0) 0 TOTAL SCORE: 751 Bonus ------- None Cogmind --------- Core Integrity 0/250 Matter 232/300 Energy 100/100 System Corruption 0% Temperature Cool (18) Movement Core (100) Ox1 Location -7/Recycling Parts ------- > --- POWER (1) -------- (None) > --- PROPULSION (2) --- (None) > --- UTILITY (2) ------ Small Storage Unit Signal Interpreter > --- WEAPON (2) ------- (None) > --- INVENTORY (8) ---- Ion Engine Light Ion Engine Improved Hover Unit Improved Hover Unit Peak State ------------ > --- POWER ------------ Ion Engine > --- PROPULSION ------- Improved Hover Unit Improved Hover Unit > --- UTILITY ---------- Small Storage Unit Tractor Beam > --- WEAPON ----------- Heavy Assault Rifle Heavy Assault Rifle > --- INVENTORY -------- Ion Engine Light Ion Engine Compact Wheel Medium Laser Assault Rifle [Rating: 11] Favorites ----------- Power Light Ion Engine Engine Light Ion Engine Propulsion Improved Hover Unit Leg Aluminum Leg Wheel Compact Wheel Hover Unit Improved Hover Unit Utility Small Storage Unit Device Tractor Beam Storage Small Storage Unit Processor Signal Interpreter Weapon Heavy Assault Rifle Energy Gun EM Pulse Gun Ballistic Gun Heavy Assault Rifle Build | -11 -10 -10 -7 ------- Run | Yrd Mat Sub Rec Slots Evolved . | . . . . Power . | . . . . Propulsion . | . . . . Utility . | . . . . Weapon . | . . . . Parts Attached 16 | 6 7 . 3 Power 3 | 1 2 . . Engine 3 | 1 2 . . Core . | . . . . Reactor . | . . . . Propulsion 7 | 2 2 . 3 Treads . | . . . . Leg 2 | 2 . . . Wheel 1 | . . . 1 Hover 4 | . 2 . 2 Flight . | . . . . Utility 3 | 2 1 . . Device 1 | 1 . . . Storage 1 | 1 . . . Processor 1 | . 1 . . Hackware . | . . . . Protection . | . . . . Artifact . | . . . . Weapon 3 | 1 2 . . Energy Gun 1 | 1 . . . Energy Cannon . | . . . . Ballistic Gun 2 | . 2 . . Ballistic Cannon . | . . . . Launcher . | . . . . Special Weapon . | . . . . Impact Weapon . | . . . . Slashing Weapon . | . . . . Piercing Weapon . | . . . . Special Melee Weapon . | . . . . Unidentified Prototypes . | . . . . Parts Lost 6 | . . . 6 Power 1 | . . . 1 Propulsion 3 | . . . 3 Utility . | . . . . Weapon 2 | . . . 2 Highest Loss Streak 5 | . . . 5 To Critical Strikes . | . . . . Average Backups 4 | 1 4 5 4 Power 1 | . 1 2 2 Propulsion 2 | . 2 3 2 Utility . | . . . . Weapon . | . . . . Tool/Special . | . . . . Unused Backups 3 | . 2 . 1 Power 1 | . . . 1 Propulsion . | . . . . Utility . | . . . . Weapon 2 | . 2 . . Tool/Special . | . . . . Average Slot Usage (%) 91 | . 88 100 84 Engine 13 | . 13 14 11 Leg 1 | . 2 . . Hover 26 | . 25 28 23 Device 5 | . 10 . . Storage 14 | . 14 14 14 Processor 7 | . 2 14 14 Ballistic Gun 21 | . 18 28 19 Peak Build Rating 11 | 6 11 11 11 Average Rating 9 | 4 9 11 8 On Entrance 7 | . 6 11 11 Naked Turns . | . . . . Heaviest Build 17 | 13 17 14 14 Greatest Support 20 | 20 20 14 16 Greatest Overweight (x) 2 | 1 2 . 1 Average Overweight (x) . | . . . . Largest Inventory Capacity 8 | 8 8 8 8 Average Capacity 7 | 7 8 8 8 Most Carried 8 | 5 8 5 5 Average Carried 4 | 1 4 5 4 Final Capacity 8 | 8 8 8 8 Final Carried 5 | 5 5 5 4 Class Distribution -------------------- 100% | Mutant Dominant Class ---------------- Mutant | -10/Materials Mutant | -10/Subcaves Mutant | -7/Recycling Resources | -11 -10 -10 -7 ----------- Run | Yrd Mat Sub Rec Matter Collected 568 | 251 294 23 . Remotely 356 | 105 251 . . Salvage Created 400 | 83 294 23 . Parts 21 | 3 15 3 . Haulers Intercepted 2 | . 2 . . Recyclers Shooed . | . . . . Parts Field Recycled . | . . . . Retrieved Matter . | . . . . Parts Self-Destructed . | . . . . Prevented . | . . . . Kills | -11 -10 -10 -7 ------- Run | Yrd Mat Sub Rec Combat Hostiles Destroyed 4 | . 4 . . Guns 4 | . 4 . . Classes Destroyed 6 | 1 4 1 . Hauler 2 | . 2 . . Recycler 2 | 1 1 . . Watcher 1 | . 1 . . Swarmer 3 | . 3 . . Grunt 1 | . 1 . . Artisan 1 | . . 1 . Best Kill Streak 3 | 1 3 . . Combat Bots Only 3 | . 3 . . Max Kills in Single Turn 1 | 1 1 1 . Gunslinging . | . . . . Exploded . | . . . . Melee . | . . . . Uniques/NPCs Destroyed . | . . . . Combat | -11 -10 -10 -7 -------- Run | Yrd Mat Sub Rec Hostile Shots Fired 165 | . 10 44 111 Missed 70 | . 2 24 44 Hits 95 | . 8 20 67 Projectile 95 | . 8 20 67 Damage Taken 732 | . 77 144 511 Core 253 | . . 13 240 Absorbed by Shields . | . . . . Core Remaining (%) 100 | 100 . . . Volleys Fired 32 | 2 20 3 7 Largest 2 | 1 2 2 1 Hottest 46 | 40 46 46 23 Shots Fired 54 | 2 39 6 7 Gun 54 | 2 39 6 7 Cannon . | . . . . Launcher . | . . . . Special . | . . . . Kinetic 52 | . 39 6 7 Thermal . | . . . . Explosive . | . . . . Electromagnetic 2 | 2 . . . Robot Hit Streak 6 | 1 6 3 5 Robot Miss Streak 4 | 1 4 . 1 Penetration Max . | . . . . Secondary Targets . | . . . . Shots Hit Robots 31 | 1 23 1 6 Core Hits 14 | 1 10 1 2 Critical Kills . | . . . . Critical Parts Destroyed . | . . . . Critical Strikes . | . . . . Melee Attacks . | . . . . Impact . | . . . . Slashing . | . . . . Piercing . | . . . . Sneak Attacks . | . . . . Combat Hostiles . | . . . . Follow-up Attacks . | . . . . Damage Inflicted 449 | 15 340 15 79 Guns 449 | 15 340 15 79 Cannons . | . . . . Explosions . | . . . . Melee . | . . . . Ramming . | . . . . Kinetic 434 | . 340 15 79 Thermal . | . . . . Explosive . | . . . . Electromagnetic 15 | 15 . . . Impact . | . . . . Slashing . | . . . . Piercing . | . . . . Highest Corruption . | . . . . Average Corruption . | . . . . Corruption Purged . | . . . . Corruption Blocked . | . . . . Overload Shots . | . . . . Overflow Damage . | . . . . Projectiles . | . . . . Explosions . | . . . . Melee . | . . . . Knockbacks . | . . . . Impact . | . . . . Kinetic . | . . . . Secondary . | . . . . Self-Inflicted Damage . | . . . . Shots . | . . . . Rammed . | . . . . Targets Rammed . | . . . . Kicked . | . . . . Crushed . | . . . . Highest Temperature 7 | . 3 . 7 Average Temperature 4 | . 3 . 4 Received Heat Transfer 234 | . 24 42 168 Siege Activations . | . . . . Martial Activations . | . . . . Shielding Activations . | . . . . Robots Disrupted . | . . . . Combat Hostiles . | . . . . Robots Corrupted . | . . . . Combat Hostiles . | . . . . Parts Fried . | . . . . Impact Corruptions . | . . . . Robots Melted . | . . . . Combat Hostiles . | . . . . Parts Melted . | . . . . Heat Transferred . | . . . . Parts Sabotaged . | . . . . Parts Stolen . | . . . . Parts Stripped . | . . . . Power Chain Reactions . | . . . . Alert | -11 -10 -10 -7 ------- Run | Yrd Mat Sub Rec Maximum Alert Level . | . . . . Low Security (%) 100 | 100 100 . 100 Level 1 . | . . . . Level 2 . | . . . . Level 3 . | . . . . Level 4 . | . . . . Level 5 . | . . . . High Security . | . . . . Max Security . | . . . . Peak Influence 76 | 5 76 . 70 Initial 14 | . . . 14 Average 13 | . 7 . 44 Influence Increases 278 | 5 137 30 106 Destroy 0b10 Robot/C 80 | . 80 . . Destroy 0b10 Robot/NC 25 | 5 20 . . Destroy Leader 16 | . 16 . . Successful Hack 20 | . 4 . 16 Select Force Hacks 90 | . . . 90 Disable Machine 15 | . 15 . . Destroy Structure 2 | . 2 . . Lose Combat Pursuer 30 | . . 30 . Influence Decreases 268 | 5 71 66 126 Entered New Map 49 | . . 33 16 Time Decay 159 | 5 71 33 50 Lost Part 60 | . . . 60 Squads Dispatched . | . . . . Investigation . | . . . . Extermination . | . . . . Reinforcement . | . . . . Assault . | . . . . Garrison . | . . . . Intercept . | . . . . Searches Triggered . | . . . . Construction Impeded . | . . . . Haulers Reinforced . | . . . . Active Scanning Responses . | . . . . Cargo Convoy Interrupts . | . . . . Stealth | -11 -10 -10 -7 --------- Run | Yrd Mat Sub Rec Distress Signals . | . . . . Communications Jammed . | . . . . Distress Signals . | . . . . Times Spotted 24 | . 5 18 1 Peak Tracking Total 11 | . 3 11 1 Tactical Retreats 3 | . . 3 . Traps | -11 -10 -10 -7 ------- Run | Yrd Mat Sub Rec Traps Triggered 5 | . 5 . . Indirectly . | . . . . Trap Hack Attempts . | . . . . Triggered . | . . . . Disarmed . | . . . . Reprogrammed . | . . . . Reused . | . . . . Traps Extracted . | . . . . Installed . | . . . . Triggered . | . . . . Machines | -11 -10 -10 -7 ---------- Run | Yrd Mat Sub Rec Machines Disabled 1 | . 1 . . Max in Single Turn 1 | . 1 . . Machines Repaired . | . . . . Machines Dismantled . | . . . . Machines Sabotaged . | . . . . Overloaded Fab Kills . | . . . . Hacking | -11 -10 -10 -7 --------- Run | Yrd Mat Sub Rec Machines Accessed 7 | . 1 . 6 Terminals 4 | . 1 . 3 Fabricators . | . . . . Repair Stations . | . . . . Recycling Units 3 | . . . 3 Scanalyzers . | . . . . Garrison Access . | . . . . Total Hacks 10 | . 1 . 9 Successful 5 | . 1 . 4 Failed 5 | . . . 5 Catastrophic 1 | . . . 1 Database Lockouts . | . . . . Manual 4 | . . . 4 Terminals 6 | . 1 . 5 Fabricators . | . . . . Repair Stations . | . . . . Recycling Units 4 | . . . 4 Scanalyzers . | . . . . Garrison Access . | . . . . Terminal Hacks 2 | . 1 . 1 Robot Analysis 1 | . . . 1 Emergency Access Points 1 | . 1 . . Fabricator Hacks . | . . . . Repair Station Hacks . | . . . . Recycling Unit Hacks . | . . . . Scanalyzer . | . . . . Garrison Access Hacks . | . . . . Unauthorized Hacks 3 | . . . 3 Terminals . | . . . . Fabricators . | . . . . Repair Stations . | . . . . Recycling Units 3 | . . . 3 Tunnel 3 | . . . 3 Scanalyzers . | . . . . Garrison Access . | . . . . Data Cores Recovered . | . . . . Used . | . . . . Hacking Detections 2 | . . . 2 Full Trace Events 1 | . . . 1 Feedback Events . | . . . . Feedback Blocked . | . . . . Robot Schematics Acquired . | . . . . Robots Built . | . . . . Authchips . | . . . . Time . | . . . . Total Robot Build Rating . | . . . . Part Schematics Acquired . | . . . . Parts Built . | . . . . Authchips . | . . . . Time . | . . . . Total Part Build Rating . | . . . . Parts Repaired . | . . . . Time . | . . . . Parts Recycled . | . . . . Recycled Matter . | . . . . Retrieved Matter . | . . . . Retrieved Components . | . . . . Parts Scanalyzed . | . . . . Part Schematics Acquired . | . . . . Parts Damaged . | . . . . Bothacking | -11 -10 -10 -7 ------------ Run | Yrd Mat Sub Rec Used RIF Installer . | . . . . Robots Hacked . | . . . . Non-combat . | . . . . Combat . | . . . . Robot Hacks Applied . | . . . . Relay Couplers Released . | . . . . Fabnet Peak Effective % . | . . . . Robots Rewired . | . . . . Allies Hacked . | . . . . Hacks Repelled . | . . . . Allies | -11 -10 -10 -7 -------- Run | Yrd Mat Sub Rec Total Allies . | . . . . Largest Group . | . . . . Highest-Rated Group . | . . . . Highest-Rated Ally . | . . . . Total Orders . | . . . . Ally Attacks . | . . . . Total Damage . | . . . . Kills . | . . . . Allies Corrupted . | . . . . Allies Melted . | . . . . Intel | -11 -10 -10 -7 ------- Run | Yrd Mat Sub Rec Active Infowar (turns) . | . . . . Robot Analysis Total 1 | . . . 1 Derelict Logs Recovered . | . . . . Drone Launches . | . . . . Drone Recoveries . | . . . . Exploration | -11 -10 -10 -7 ------------- Run | Yrd Mat Sub Rec Turns Passed 854 | 95 392 248 119 Spaces Moved 1069 | 66 408 426 169 Core 17 | 6 2 . 9 Treads . | . . . . Legs 69 | 60 9 . . Wheels 5 | . . . 5 Hover 978 | . 397 426 155 Flight . | . . . . Fastest Speed 50 | 50 56 56 56 Average Speed 64 | 117 67 56 59 Slowest Speed 190 | 120 190 56 100 Overloaded Moves . | . . . . Propulsion Burnouts . | . . . . Robots Hopped . | . . . . Potential Cave-ins . | . . . . Cave-ins Triggered . | . . . . Exploration Rate (%) 25 | 4 36 38 23 Regions Visited 3 Branch Regions 2 Pre-discovered Areas 3 | . . . 3 Known Exits Taken 2 | . 1 1 . Unknown Exits Taken 1 | 1 . . . Scrap Searched . | . . . . Spaces Dug . | . . . . Terrain Destroyed . | . . . . Melee . | . . . . Projectile . | . . . . AOE . | . . . . Terrain Rammed . | . . . . Walls Destroyed . | . . . . Machines Disabled . | . . . . Actions | -11 -10 -10 -7 --------- Run | Yrd Mat Sub Rec Total 1163 | 78 478 428 179 Wait 21 | . 21 . . Move 1066 | 65 407 425 169 Hop . | . . . . Pick Up 7 | 5 2 . . Fast Attach 19 | 6 13 . . Attach 4 | . 3 . 1 Detach 3 | . 3 . . Swap 8 | . 6 . 2 Drop 3 | . 3 . . Fire 32 | 2 20 3 7 Melee . | . . . . Ram . | . . . . Kick . | . . . . Crush . | . . . . Escape Stasis . | . . . . Rewire . | . . . . Trap . | . . . . Miscellaneous . | . . . . Route ------- -11/Scrapyard -10/Materials (discovered 2 exits: [*Min] / *Sub) -10/Subcaves -7/Recycling History --------- Turn | Location | Event 6 | -11/Scrapyard | Discovered new exit (range 16) 96 | -11/Scrapyard | Entered Materials 251 | -10/Materials | Discovered new exit (range 9) 315 | -10/Materials | Build established: Mutant 381 | -10/Materials | Discovered new exit (range 6) 486 | -10/Materials | Identified exit to Subcaves 488 | -10/Materials | Entered Subcaves 602 | -10/Subcaves | Shifting Twisted Machinery released Sub. Power Source 602 | -10/Subcaves | Shifting Twisted Machinery released Shrapnel Trap 718 | -10/Subcaves | Ambushed by Subdwellers from Twisted Machinery 727 | -10/Subcaves | Discovered new exit (range 16) 735 | -10/Subcaves | Identified exit to Recycling 736 | -10/Subcaves | Entered Recycling 737 | -7/Recycling | Met a Zionite searching for Scraptown 843 | -7/Recycling | Core integrity fell below 50% 852 | -7/Recycling | Core integrity fell below 20% 855 | -7/Recycling | Destroyed by Y-54 Guardian with Gatling Laser Last Messages --------------- 00798_ Connecting with Recycling Unit... >>Force(Tunnel) DISCOVERED[-5/Hub_04(d)] 00817_ Connecting with Terminal... >>Analysis(Mutant) Downloading analysis... Mutant Tiers: 5, 6, 7, 8 Lumbering abominations cobbled together from stolen or salvaged components, though much of their weaponry is derelict in origin. I believe the ever-stimulating Warlord is mass-producing these to lead an attack of some sort, since sightings by cave patrols have become increasingly common. 00822_ Connecting with Terminal... 00832_ Lgt. Ion Engine destroyed. 00832_ Imp. Hover Unit destroyed. 00839_ Hvy. Assault Rifle destroyed. 00848_ Com. Wheel destroyed. Map ----- +----------------------------------------------------+ | ?????????????????????????????????????????????????? | | ?????????????????????????????????????????????????? | | ?????????????????????????????????????????????????? | | ?????????????????????????????????????????????????? | | ?????????????????????????????????????????????????? | | ?????????????????????????????????????????????????? | | ?????????????????????????????????????????????????? | | ?????????????????????????????????????????????????? | | ?????????????????????????????????????????????????? | | ?????????????????????????????????????????????????? | | ?????????????????????????????????????????????????? | | ?????????????????????????????????????????????????? | | ?????????????????????????????????????????????????? | | ???????????????????????????????????????#########?? | | #??????????????????????????????????????# #?? | | #????????###########???????###########?# """ #?? | | #????????# #???????# ! #?# """ #?? | | #????????# ####????# % ! #?# """ ### | | #????????# """#????# ### ""# | | #????????# T"#????# * # + """ ""# | | #????????# """ """ """#????# % # # """ T"# | | #????????# """ """ ####????? ! % # # """ ""# | | #####????# """ """ #??#####??? % # # ""# | | #"""#????# #??#"""#????? # # """ ### | | #"Y"##########+########"Y"########+### # """ ##? | | @ # """ "#? | | + "#? | | Y # """ "#? | | ####################### ################ """ T#? | | ??????????????????????###??????????????# """ "#? | | ?????????????????????????????????????# "#? | | ???????????????????????????????????# """ "#? | | #??????????????????????????????????# """ ##? | | #??????????????????????????????????# """ #?? | | #??????????????????????????????????# #?? | | #??????????????????????????????????#########?? | | #????????????????????????????????????????????? | | #????????????????????????????????????????????? | | #????????????????????????????????????????????? | | #????????????????????????????????????????????? | | +????????????????????????????????????????????? | | #####????????????????????????????????????????????? | | ?????????????????????????????????????????????????? | | ?????????????????????????????????????????????????? | | ?????????????????????????????????????????????????? | | ?????????????????????????????????????????????????? | | ?????????????????????????????????????????????????? | | ?????????????????????????????????????????????????? | | ?????????????????????????????????????????????????? | | ?????????????????????????????????????????????????? | +----------------------------------------------------+ Best States ------------- Heat Dissipation 25 Energy Generation 10 Energy Capacity 250 Matter Stores 291 Matter Capacity 300 Sight Range 16 Terrain Scan Density 10 Evasion (%) 55 Item Schematics ----------------- None Robot Schematics ------------------ None Fabricated ------------ Nothing Repaired ---------- Nothing Alien Tech Used ----------------- None Achievements -------------- None Challenges ------------ None Game ------ Seed CargoShockDetector Manual? 0 Play Time 00:17:30 Cumulative 30.7 hours Start 2025.09.01 @ 09:42:37 End 2025.09.01 @ 09:59:56 Sessions 1 Manual Loads 0 Difficulty Rogue Special Mode None Game No. 37 Rogue 7 Adventurer 30 Explorer 0 Win Type - Total 0 Types 0/0/0/0/0/0/0/0/0/0 Lore% 13 Gallery% 22 Achievement% 21 Wizard Run 0 Options --------- Layout 1 ASCII 0 Keyboard 1 Movement Arrows Keybinds 0 Fullscreen 1 Font 24/Terminus Map View 50x35 Zoom Use 0% Tactical HUD 1 Map Filters NONE Filters NONE Steam 1 RUN: 86ed885b-8b06-4fa1-bc29-3830aeac392d